bitfinex/quotes_ETHUSD_20251017
["timestamp","ask_amount","ask_price","bid_price","bid_amount"]
[1760689215952,0.0277,3732.2,3729.6,0.4524]
[1760689216151,1.352,3732.1,3730.2,2.68075333]
[1760689216353,1.352,3732.1,3730.3,0.232]
[1760689216556,0.002,3732.7,3730.3,0.6844]
[1760689216772,1.89,3732.0,3730.7,2.68041055]
[1760689217046,3.095,3732.1,3731.3,2.68000824]
[1760689217270,0.002,3732.7,3731.4,0.4524]
[1760689217546,0.0012,3735.4,3733.0,2.6788106]
[1760689217547,0.1596,3734.7,3733.0,2.6788106]
[1760689217769,0.797,3734.3,3733.0,2.6788106]
[1760689217937,0.0012,3735.4,3733.9,2.67811919]
[1760689218137,0.427,3735.0,3733.4,1.728]
[1760689218452,0.427,3735.0,3733.2,0.4524]
[1760689218453,0.1604,3734.8,3733.2,0.4524]
[1760689218663,0.427,3735.0,3733.6,2.67835862]
[1760689218970,0.0012,3735.4,3733.6,2.67832261]
[1760689218971,1.534,3734.9,3733.6,2.67832261]
[1760689219170,1.534,3734.9,3733.8,2.67822617]
[1760689219377,1.534,3734.9,3733.7,0.4524]
[1760689219681,0.0012,3735.4,3733.7,0.4524]
[1760689219682,0.0012,3735.4,3734.4,2.90980634]
[1760689219986,0.0012,3735.4,3734.4,8.50314234]
[1760689220156,0.0012,3735.4,3734.4,0.818]
[1760689220355,0.0012,3735.4,3734.4,0.6844]
[1760689220553,1.9082,3735.4,3734.4,3.36220634]
[1760689220757,0.0012,3735.4,3734.4,3.36220634]
[1760689221065,0.0012,3735.4,3734.4,6.35852134]
[1760689221262,0.0012,3735.4,3734.4,11.14671434]
[1760689221470,0.0012,3735.4,3734.4,12.87471434]
[1760689221787,0.0012,3735.4,3734.4,9.29188034]
[1760689222089,0.0012,3735.4,3733.6,0.4574]
[1760689222090,0.0702,3735.4,3733.6,0.4574]
[1760689222300,0.0702,3735.4,3734.4,2.67780634]
[1760689222661,0.0702,3735.4,3734.4,3.13520634]
[1760689222998,0.0012,3735.4,3734.4,3.13520634]
[1760689223292,0.0012,3735.4,3735.3,2.67716113]
[1760689223459,0.0012,3735.4,3735.3,4.40516113]
[1760689223664,0.0012,3735.4,3735.3,16.41294513]
[1760689223865,0.0012,3735.4,3735.3,4.86256113]
[1760689224077,0.0012,3735.4,3735.3,10.48568602]
[1760689224275,0.0012,3735.4,3735.3,10.47983813]
[1760689224477,0.0012,3735.4,3735.3,14.29544713]
[1760689224677,0.0012,3735.4,3735.3,14.02544713]
[1760689224989,0.0012,3735.4,3735.3,13.82709713]
[1760689225290,0.0012,3735.4,3735.3,7.03542113]
[1760689225493,0.0012,3735.4,3735.3,3.13456113]
[1760689225654,0.0012,3735.4,3735.3,10.96778613]
[1760689225859,0.0012,3735.4,3735.3,8.35703313]
[1760689226299,0.114,3737.3,3735.3,10.71863313]
[1760689226500,0.2189,3737.9,3735.5,6.93868]
[1760689226812,0.3827,3737.4,3735.2,0.2292]
[1760689227014,0.3827,3737.4,3734.6,0.2292]
[1760689227159,0.04665838,3737.1,3734.9,2.67739261]
[1760689227509,0.04665838,3737.1,3735.3,2.67709929]
[1760689227791,0.002,3737.5,3736.4,2.67630251]
[1760689227962,0.002,3737.5,3736.5,2.67628995]
[1760689228161,0.002,3737.5,3736.2,2.67651624]
[1760689228356,0.002,3737.5,3736.1,0.2292]
[1760689228558,0.002,3737.5,3736.2,2.67646038]
[1760689228882,0.002,3737.5,3735.1,2.67730448]
[1760689229057,0.002,3737.5,3735.9,2.67671642]
[1760689229413,0.3827,3737.4,3735.6,2.67693464]
[1760689229574,0.3827,3737.4,3735.5,2.67699944]
[1760689229774,0.3827,3737.4,3735.6,0.0091839]
[1760689230077,0.3827,3737.4,3735.3,5.043902]
[1760689230078,0.3827,3737.4,3735.3,0.4574]
[1760689230269,0.1336,3736.7,3736.1,0.1336]
[1760689230857,0.1336,3736.9,3736.2,0.00979092]
[1760689231094,0.002,3737.5,3736.2,3.728636]
[1760689231295,0.002,3737.5,3736.5,2.67628917]
[1760689231499,0.002,3737.5,3736.3,0.4574]
[1760689231791,0.002,3737.5,3735.8,0.2292]
[1760689232362,0.002,3737.5,3736.3,2.67644292]
[1760689232556,0.002,3737.5,3736.0,5.985493]
[1760689232557,0.002,3737.5,3736.0,2.67665952]
[1760689232758,0.002,3737.5,3735.9,2.1854]
[1760689232958,0.3827,3737.4,3735.2,0.4574]
[1760689233185,0.3827,3737.4,3734.6,0.2292]
[1760689233392,0.6336,3737.3,3734.6,0.2292]
[1760689233556,0.002,3737.5,3734.2,0.2292]
[1760689233557,2.3616,3736.7,3734.2,0.2292]
[1760689233759,3.2899,3736.9,3735.3,2.67712606]
[1760689233960,0.3827,3736.8,3734.2,3.36454717]
[1760689234173,0.3827,3736.7,3734.3,4.758044]
[1760689234367,0.2189,3736.9,3735.4,2.67702877]
[1760689234573,0.2189,3736.9,3735.5,0.2292]
[1760689234574,3.071,3736.8,3735.5,0.2292]
[1760689234792,3.071,3736.8,3735.5,2.90620292]
[1760689234959,3.071,3736.8,3735.5,0.2292]
[1760689235382,0.3827,3736.7,3734.6,0.4574]
[1760689235567,0.3827,3736.7,3734.6,3.13503019]
[1760689235895,0.3827,3736.7,3735.2,2.67717884]
[1760689236082,0.3827,3736.7,3734.4,0.001]
[1760689236083,3.071,3736.8,3735.1,0.6866]
[1760689236285,3.071,3736.8,3735.2,2.67721482]
[1760689236501,0.3827,3736.7,3734.3,0.4574]
[1760689236798,0.6336,3736.6,3734.3,3.13527188]
[1760689236960,0.6336,3736.6,3734.0,0.001]
[1760689237165,0.6336,3736.3,3734.0,0.001]
[1760689237366,2.3616,3735.8,3734.0,0.001]
[1760689237669,2.676291,3736.6,3734.0,0.001]
[1760689237670,0.6336,3735.4,3734.0,0.001]
[1760689237867,3.066,3735.3,3734.0,0.001]
[1760689238120,3.2241,3735.3,3734.0,0.001]
[1760689238299,1.728,3735.2,3734.0,0.001]
[1760689238701,3.2241,3735.3,3734.0,0.001]
[1760689238865,0.1581,3735.3,3734.0,0.001]
[1760689239073,2.372,3735.2,3734.0,0.001]
[1760689239403,2.5301,3735.2,3734.0,0.001]
[1760689239579,0.2183,3734.5,3734.0,0.001]
[1760689240013,0.377,3734.5,3734.0,0.001]
[1760689240255,0.2183,3734.5,3734.0,0.001]
[1760689240514,3.2233,3734.5,3734.0,0.001]
[1760689240722,2.3616,3734.4,3734.0,0.001]
[1760689240871,4.40602147,3734.1,3734.0,0.001]
[1760689241071,4.40602147,3734.1,3731.8,0.2292]
[1760689241072,0.6336,3733.8,3732.0,0.1336]
[1760689241273,0.3741,3734.0,3732.0,0.1336]
[1760689241515,0.3762,3733.7,3732.3,0.1336]
[1760689242011,1.0098,3733.7,3731.8,0.1336]
[1760689242873,5.41610838,3733.7,3730.4,0.6866]
[1760689243075,0.6336,3732.3,3730.4,0.6866]
[1760689243275,5.03998011,3733.6,3730.4,0.2292]
[1760689243276,1.728,3732.1,3730.4,0.2292]
[1760689243483,1.827,3732.0,3730.4,0.2292]
[1760689243685,0.26562574,3731.9,3730.4,0.2292]
[1760689244085,0.7906,3731.8,3730.0,0.2292]
[1760689244318,0.7906,3731.8,3729.6,0.4574]
[1760689244319,0.7906,3731.8,3729.6,0.6866]
[1760689244789,1.728,3731.5,3729.0,2.68166757]
[1760689244990,1.728,3731.2,3728.9,0.6866]
[1760689245319,0.157,3731.1,3728.9,0.6866]
[1760689245621,0.157,3731.1,3728.3,3.28316766]
[1760689245622,0.6336,3730.9,3728.8,0.4574]
[1760689245788,1.546,3730.8,3728.8,0.4574]
[1760689245985,1.546,3730.8,3728.3,0.601]
[1760689245986,0.7906,3730.7,3728.3,0.601]
[1760689246191,0.6336,3730.5,3728.3,0.601]
[1760689246730,0.6336,3729.8,3728.3,0.601]
[1760689247037,0.157,3730.4,3728.3,0.601]
[1760689247038,1.728,3729.6,3728.3,0.601]
[1760689247336,0.1354,3729.5,3728.3,0.601]
[1760689247911,3.056,3729.7,3728.3,0.601]
[1760689248111,0.1354,3730.0,3728.3,0.601]
[1760689248412,1.16,3729.9,3728.4,0.4574]
[1760689248934,0.2369,3730.7,3728.4,0.4574]
[1760689249098,1.443,3730.6,3728.4,2.1854]
[1760689249298,0.6336,3730.5,3728.5,0.56977848]
[1760689249503,0.28364248,3730.7,3728.6,3.1393405]
[1760689249699,0.943,3730.4,3729.5,2.68131184]
[1760689249907,0.943,3730.4,3729.6,2.68122048]
[1760689250100,0.2189,3731.9,3729.7,0.4574]
[1760689250441,3.09673177,3731.8,3729.7,0.4574]
[1760689250640,3.05,3731.8,3729.9,1.728]
[1760689250804,3.05,3731.8,3730.0,0.67594]
[1760689251003,3.05,3731.8,3730.4,1.728]
[1760689251237,3.051,3731.7,3731.2,2.68004332]
[1760689251598,3.051,3731.7,3730.1,0.2292]
[1760689251599,0.04672254,3732.6,3731.3,0.46750031]
[1760689251748,26.86222725,3735.7,3731.5,2.67988744]
[1760689251749,0.3717,3734.3,3731.5,2.67988744]
[1760689251947,0.952,3733.9,3732.6,2.67907854]
[1760689252241,0.952,3733.9,3732.5,0.2218]
[1760689252442,0.952,3733.9,3732.6,0.46749097]
[1760689252651,0.952,3733.9,3732.5,0.2218]
[1760689252800,0.1336,3733.1,3732.5,0.1336]
[1760689253440,0.1336,3732.5,3731.8,0.1336]
[1760689253645,2.189,3732.4,3731.3,0.4407]
[1760689253849,0.1336,3731.7,3731.3,2.6799605]
[1760689254015,3.048,3732.3,3730.6,3.1212155]
[1760689254216,3.048,3732.3,3731.3,0.001]
[1760689254416,0.1218,3732.9,3731.3,0.001]
[1760689254642,3.047,3732.8,3731.3,0.001]
[1760689254817,1.728,3732.7,3731.3,0.001]
[1760689257268,0.04671637,3732.6,3731.3,0.001]
[1760689257564,3.038,3732.5,3731.9,2.67953021]
[1760689257769,3.038,3732.5,3731.7,2.67967379]
[1760689258076,0.4614,3732.7,3731.4,2.67993333]
[1760689258368,0.4614,3732.7,3731.4,2.67995926]
[1760689258564,0.1218,3732.9,3731.4,2.67995926]
[1760689258565,3.036,3732.6,3731.6,2.67978779]
[1760689258931,3.036,3732.6,3731.3,0.001]
[1760689259137,3.036,3732.6,3731.4,0.4407]
[1760689259431,3.034,3733.0,3731.4,0.4407]
[1760689259637,3.034,3732.9,3731.4,0.4407]
[1760689259833,0.5832,3732.8,3731.3,0.001]
[1760689260061,0.6336,3732.7,3731.3,0.001]
[1760689260264,0.5832,3732.8,3731.3,0.001]
[1760689260468,0.6336,3732.5,3731.3,0.001]
[1760689260776,0.68031734,3732.5,3731.3,0.001]
[1760689260973,0.4395,3732.4,3731.3,0.001]
[1760689261669,3.032,3732.3,3731.3,0.001]
[1760689261874,3.032,3732.3,3731.4,2.67995926]
[1760689262074,0.1285,3732.8,3731.3,0.001]
[1760689262075,3.031,3732.2,3731.3,0.001]
[1760689262276,0.2334,3731.5,3731.3,0.001]
[1760689262773,0.4395,3731.4,3731.3,0.001]
[1760689263363,0.1285,3732.8,3731.3,0.001]
[1760689263364,0.2342,3732.1,3731.3,0.001]
[1760689263705,3.031,3732.0,3731.3,0.26910977]
[1760689263903,0.1336,3731.7,3731.3,0.26910977]
[1760689264252,0.5697,3733.3,3731.8,2.679672]
[1760689264607,0.1336,3732.8,3732.0,2.6795284]
[1760689264769,0.1336,3732.8,3731.9,0.45688718]
[1760689264770,0.2342,3734.0,3732.5,2.67916644]
[1760689265090,0.3335,3734.2,3732.7,0.1336]
[1760689265091,0.1336,3733.4,3732.7,0.1336]
[1760689265298,0.04670079,3735.4,3733.3,2.90614326]
[1760689265586,2.692,3734.8,3734.7,2.67759123]
[1760689265798,3.029,3736.1,3734.7,0.4497]
[1760689266103,3.032,3737.2,3734.9,0.6336]
[1760689266253,3.032,3737.2,3734.7,0.4497]
[1760689266461,3.032,3737.2,3734.2,26.54441256]
[1760689266462,0.4332,3736.6,3734.2,1.728]
[1760689266652,0.4332,3736.6,3734.3,0.26257316]
[1760689266852,0.4332,3736.6,3735.3,2.67709315]
[1760689267107,0.002,3737.1,3735.2,0.4497]
[1760689267405,0.002,3737.1,3735.2,0.4613006]
[1760689267691,0.002,3737.1,3735.3,5.70564599]
[1760689267889,0.002,3737.1,3735.9,2.67666616]
[1760689268095,0.002,3737.1,3735.9,0.26766662]
[1760689268297,0.002,3737.1,3736.0,0.4497]
[1760689268800,0.002,3737.1,3735.3,0.4497]
[1760689269456,0.002,3737.1,3735.6,5.273647]
[1760689269661,3.04,3737.1,3736.3,2.67644161]
[1760689269865,3.04,3737.1,3735.2,26.54441256]
[1760689269866,3.04,3737.1,3735.7,0.4497]
[1760689270183,3.04,3737.1,3736.6,0.2276]
[1760689270420,3.04,3737.1,3736.2,2.67645973]
[1760689270584,3.04,3737.1,3736.5,2.67626181]
[1760689270771,3.04,3737.1,3736.6,2.67622972]
[1760689270975,0.002,3737.1,3736.6,3.12592972]
[1760689271505,0.002,3737.1,3736.4,2.67634897]
[1760689271506,0.002,3737.1,3736.0,0.4497]
[1760689272075,0.002,3737.1,3736.6,2.67622972]
[1760689272273,0.002,3737.1,3736.6,3.21148545]
[1760689272482,0.002,3737.1,3736.6,8.68524545]
[1760689272762,0.002,3737.1,3737.0,14.15719527]
[1760689272981,0.002,3737.5,3737.4,4.40365687]
[1760689273184,0.002,3737.9,3737.8,2.67537053]
[1760689273369,0.002,3737.9,3737.8,18.59908795]
[1760689273675,0.002,3737.9,3737.3,0.2276]
[1760689273676,0.002,3737.9,3737.0,0.4497]
[1760689273875,0.002,3737.9,3737.1,2.67581357]
[1760689274079,0.002,3737.9,3737.1,2.67580736]
[1760689274278,0.002,3737.9,3736.9,2.67595166]
[1760689274497,0.002,3737.9,3736.8,0.4497]
[1760689274700,0.002,3737.9,3737.0,5.406944]
[1760689275001,0.002,3737.9,3737.1,1.728]
[1760689275187,0.002,3737.9,3737.8,4.40337053]
[1760689275391,0.002,3737.9,3737.8,0.1336]
[1760689275594,0.002,3737.9,3737.8,2.80897053]
[1760689275904,0.002,3737.9,3737.8,3.53956758]
[1760689276105,0.002,3737.9,3737.8,15.83059458]
[1760689276269,0.002,3737.9,3737.8,15.23033958]
[1760689276472,0.002,3737.9,3737.8,5.13396758]
[1760689276674,0.002,3737.9,3736.9,1.19059687]
[1760689276897,0.002,3737.9,3737.8,2.67537053]
[1760689277170,0.002,3737.9,3737.8,8.52693553]
[1760689277365,0.002,3738.3,3738.2,19.00745126]
[1760689277605,1.601,3740.5,3738.5,1.728]
[1760689277808,0.3207,3740.4,3738.6,1.189846]
[1760689277969,0.3207,3740.3,3738.6,2.67474793]
[1760689278169,0.3207,3740.3,3738.8,2.67464988]
[1760689278370,0.0466137,3740.9,3738.9,3.12423198]
[1760689278570,0.0466137,3740.9,3739.5,2.67414259]
[1760689278813,0.3207,3740.8,3737.7,0.4497]
[1760689279111,0.3207,3740.8,3737.0,26.77201256]
[1760689279112,0.6336,3740.5,3738.4,2.67492757]
[1760689279322,0.3207,3740.4,3738.1,0.6773]
[1760689279489,3.044,3740.4,3738.4,0.4497]
[1760689279685,0.3207,3740.3,3738.6,2.67478969]
[1760689279990,0.3207,3740.3,3738.6,0.57994788]
[1760689280195,0.3207,3740.3,3738.7,2.67466852]
[1760689280392,0.3207,3740.3,3738.4,3.12457416]
[1760689280393,0.3207,3740.3,3738.4,0.4497]
[1760689280603,0.3207,3740.3,3738.7,2.67466032]
[1760689280803,3.05,3740.2,3738.4,0.4497]
[1760689281110,3.05,3740.1,3738.1,0.2276]
[1760689281280,0.3207,3740.0,3738.1,0.2276]
[1760689281482,0.6336,3739.4,3737.0,0.2276]
[1760689281684,0.3188,3739.3,3737.2,2.262]
[1760689281902,3.05,3739.2,3737.2,2.262]
[1760689282212,0.4477,3739.9,3737.5,1.728]
[1760689282422,3.05,3739.3,3738.0,1.728]
[1760689282714,3.3688,3739.3,3737.1,0.14181969]
[1760689283003,3.05,3739.4,3738.1,2.90714677]
[1760689283217,0.3188,3739.3,3737.3,1.728]
[1760689283382,0.1289,3739.9,3737.4,0.4522]
[1760689283589,3.05,3739.3,3737.4,3.12784802]
[1760689283891,0.3188,3739.2,3737.2,2.63247953]
[1760689284069,0.3188,3739.1,3737.1,0.14181969]
[1760689284271,0.6336,3739.0,3736.9,0.4522]
[1760689284610,0.553,3738.9,3736.2,0.4522]
[1760689284775,0.6336,3738.6,3736.2,0.4522]
[1760689284971,0.553,3738.9,3736.2,2.67645802]
[1760689284972,0.32,3738.5,3736.2,2.67645802]
[1760689285277,0.9536,3738.4,3736.1,0.232]
[1760689285585,0.9536,3738.4,3736.1,2.90857543]
[1760689285779,0.32,3738.3,3736.3,2.67638133]
[1760689285976,0.32,3738.3,3736.2,0.29085754]
[1760689285977,0.1336,3737.6,3737.0,0.1336]
[1760689286227,0.233,3738.9,3736.9,0.4522]
[1760689286391,0.32,3738.4,3736.9,0.4522]
[1760689286572,0.233,3738.9,3737.0,12.30024]
[1760689286906,0.4489,3739.9,3738.0,2.67517262]
[1760689287076,0.4489,3739.9,3737.7,0.4522]
[1760689287407,0.2169,3740.6,3738.2,7.442098]
[1760689287610,0.2169,3740.6,3738.4,18.459858]
[1760689287910,0.459,3740.5,3738.5,0.4522]
[1760689288109,0.459,3740.5,3738.8,5.885068]
[1760689288311,0.459,3740.5,3738.9,0.4522]
[1760689288476,0.459,3740.5,3739.2,2.67435196]
[1760689288676,0.459,3740.5,3738.9,0.4522]
[1760689288872,0.459,3740.5,3738.4,1.728]
[1760689289214,0.459,3740.5,3739.1,1.728]
[1760689289417,0.459,3740.5,3739.3,2.67429145]
[1760689289631,0.459,3740.5,3739.2,5.0865378]
[1760689289832,0.459,3740.5,3739.3,2.67428417]
[1760689290027,0.002,3739.3,3738.9,1.728]
[1760689290249,0.002,3739.3,3739.0,5.05069739]
[1760689290564,0.002,3739.3,3737.7,1.728]
[1760689290853,0.2182,3739.2,3737.8,0.0267537]
[1760689291048,0.474,3739.1,3737.8,0.4522]
[1760689291214,0.474,3739.1,3737.3,0.232]
[1760689291411,0.474,3739.1,3737.5,1.728]
[1760689291612,0.002,3739.3,3737.6,0.69342]
[1760689291827,3.041,3739.2,3737.9,2.67526435]
[1760689292041,3.2593,3739.2,3737.6,0.4522]
[1760689292318,3.04,3739.1,3736.5,0.02676301]
[1760689292515,0.6336,3739.0,3736.6,0.232]
[1760689292762,0.4512,3738.9,3737.0,2.67590733]
[1760689292986,3.04,3738.8,3736.8,2.67607488]
[1760689293170,0.04664006,3738.7,3736.7,0.4522]
[1760689293462,3.039,3738.6,3736.6,0.56805695]
[1760689293614,3.2575,3738.6,3736.7,2.6761581]
[1760689293818,0.2327,3738.9,3737.1,2.67587166]
[1760689294014,3.038,3738.8,3737.0,0.6336]
[1760689294222,0.002,3739.3,3737.7,0.6336]
[1760689294568,0.002,3739.3,3737.1,0.6842]
[1760689294868,0.002,3739.3,3737.7,0.4522]
[1760689295069,0.002,3739.3,3737.8,1.728]
[1760689295225,0.002,3739.3,3737.7,2.1802]
[1760689295423,0.002,3739.3,3737.1,2.90785199]
[1760689295649,0.002,3739.3,3736.9,0.4522]
[1760689295650,57.17801256,3739.1,3736.1,0.233]
[1760689295838,0.1233,3737.7,3736.1,0.001]
[1760689296035,3.042,3737.6,3736.1,0.001]
[1760689296256,2.3616,3737.5,3736.1,0.001]
[1760689296559,0.6336,3737.4,3736.1,0.001]
[1760689296763,3.261,3737.6,3736.1,0.001]
[1760689296964,0.6336,3737.2,3736.1,0.001]
[1760689297171,0.219,3737.3,3736.1,0.001]
[1760689297336,3.043,3737.2,3736.1,0.001]
[1760689297729,3.26,3737.1,3736.1,0.001]
[1760689298230,3.041,3737.1,3736.1,0.001]
[1760689298773,0.04665767,3737.4,3736.1,0.001]
[1760689298934,3.04,3737.3,3736.2,0.6842]
[1760689299135,0.3432,3738.2,3736.2,0.6842]
[1760689299136,0.04665216,3738.1,3736.2,0.6842]
[1760689299358,3.038,3737.2,3736.2,0.6842]
[1760689299573,3.04,3737.1,3736.3,3.18542232]
[1760689299872,3.04,3737.7,3736.3,0.96117775]
[1760689300074,3.04,3737.6,3736.3,0.4522]
[1760689300273,3.04,3737.6,3737.0,2.67587711]
[1760689300510,3.04,3737.6,3736.5,10.160749]
[1760689300787,3.04,3737.6,3736.2,0.6842]
[1760689300947,3.04,3737.6,3735.7,0.001]
[1760689300948,0.2162,3737.5,3735.7,2.67785826]
[1760689301146,0.2162,3737.5,3735.7,0.001]
[1760689301548,3.04,3737.6,3736.4,2.67630163]
[1760689301875,0.2162,3737.5,3736.1,0.001]
[1760689302249,1.9442,3737.5,3736.1,0.001]
[1760689302450,0.6336,3737.1,3736.1,0.001]
[1760689302773,0.2328,3736.2,3736.1,0.001]
[1760689302974,3.9014,3736.2,3736.1,0.001]
[1760689303273,3.9014,3736.2,3735.7,0.001]
[1760689303274,3.52987178,3736.2,3735.7,0.001]
[1760689303574,3.2494,3736.1,3735.7,0.001]
[1760689303867,3.033,3736.0,3735.7,0.001]
[1760689304184,1.728,3735.9,3735.7,0.001]
[1760689304541,0.2156,3735.8,3735.7,0.001]
[1760689304739,0.8492,3735.8,3735.7,0.001]
[1760689304953,0.8492,3735.8,3735.3,0.001]
[1760689304954,2.67708946,3735.4,3735.3,0.001]
[1760689305160,2.3616,3735.4,3735.3,0.001]
[1760689305439,8.28728946,3735.4,3735.3,0.001]
[1760689305766,10.69978946,3735.4,3735.3,0.001]
[1760689306350,0.6336,3734.2,3731.6,0.4522]
[1760689306681,0.1336,3732.6,3732.1,1.728]
[1760689306884,3.031,3732.5,3732.0,0.1336]
[1760689307185,3.031,3732.5,3732.2,0.1336]
[1760689307336,3.031,3732.5,3731.4,0.6842]
[1760689307736,1.77470446,3733.7,3731.4,0.6842]
[1760689307737,3.028,3732.4,3731.4,0.6842]
[1760689307983,0.04670446,3733.7,3731.6,0.4522]
[1760689308188,3.027,3733.6,3731.8,1.728]
[1760689308388,3.027,3733.5,3731.9,0.67022]
[1760689308545,3.027,3733.5,3731.5,0.001]
[1760689308546,26.54441256,3735.9,3732.2,2.67931762]
[1760689308744,0.6336,3734.7,3732.4,2.67924123]
[1760689308946,0.0466953,3734.5,3732.9,2.67886851]
[1760689309191,0.0466953,3734.5,3732.9,2.67886256]
[1760689309400,0.7965,3734.4,3731.5,0.001]
[1760689309608,0.1629,3734.4,3732.2,0.232]
[1760689309807,0.6336,3734.0,3732.2,0.232]
[1760689309956,3.2562,3733.9,3732.2,0.232]
[1760689310301,2.5244,3733.8,3731.6,0.001]
[1760689310501,1.728,3733.6,3731.6,0.001]
[1760689310701,1.728,3733.4,3731.6,0.001]
[1760689310853,1.8916,3733.5,3731.6,0.001]
[1760689311054,1.728,3733.7,3731.6,0.001]
[1760689311378,0.04671594,3733.2,3731.6,0.001]
[1760689311877,3.023,3733.1,3731.6,0.001]
[1760689312263,0.1636,3733.0,3731.6,0.001]
[1760689312651,0.2246,3732.9,3731.6,0.001]
[1760689312851,0.2246,3732.9,3731.6,0.26929046]
[1760689313054,3.02,3732.8,3732.2,2.67935677]
[1760689313249,3.021,3732.7,3731.6,0.001]
[1760689313488,3.021,3732.6,3731.9,2.6795442]
[1760689313801,3.021,3732.5,3731.6,0.4502]
[1760689313950,3.021,3732.4,3731.6,0.4502]
[1760689314306,3.021,3732.4,3731.7,0.48591544]
[1760689314492,0.172,3733.3,3731.7,0.48591544]
[1760689314680,3.02,3733.2,3732.2,2.67931897]
[1760689314885,3.02,3733.2,3731.8,2.67961523]
[1760689315197,3.02,3733.2,3731.7,0.48591544]
[1760689315391,3.02,3733.2,3731.8,1.728]
[1760689315632,3.02,3733.2,3731.8,2.67961553]
[1760689315996,3.02,3733.2,3731.6,0.4502]
[1760689316193,3.02,3733.2,3731.6,0.001]
[1760689316399,0.1725,3733.1,3731.6,0.001]
[1760689317401,0.1336,3732.4,3731.9,2.6796002]
[1760689317605,0.1336,3732.4,3732.0,0.73052002]
[1760689317804,0.1336,3732.4,3731.8,0.1336]
[1760689317992,0.1336,3731.9,3731.6,0.001]
[1760689318397,0.1715,3733.0,3731.7,0.4492]
[1760689318600,3.244,3732.9,3731.6,2.6808065]
[1760689318903,0.172,3732.8,3731.6,0.001]
[1760689319105,0.04671335,3732.7,3731.6,0.001]
[1760689319522,0.172,3732.6,3731.6,0.001]
[1760689319906,0.6336,3732.5,3731.6,0.001]
[1760689320301,0.6336,3732.3,3731.6,0.001]
[1760689320535,0.68032155,3732.3,3731.2,0.001]
[1760689320756,0.2246,3731.4,3731.2,0.001]
[1760689321043,3.02,3731.3,3731.2,0.001]
[1760689321412,0.04672155,3732.3,3731.2,0.001]
[1760689321745,1.207,3733.4,3731.2,0.001]
[1760689321746,0.04671412,3733.3,3731.2,3.11317211]
[1760689321908,1.368,3733.2,3731.3,0.98034721]
[1760689322111,1.368,3733.2,3731.3,1.9433]
[1760689322346,0.122,3733.1,3731.2,0.001]
[1760689322518,0.122,3733.1,3731.5,2.67988624]
[1760689322719,0.122,3733.1,3731.4,0.4321]
[1760689322960,0.122,3733.0,3731.2,0.2163]
[1760689323166,0.9786,3732.9,3731.2,0.001]
[1760689323386,0.2261,3731.3,3731.2,0.001]
[1760689323672,3.2471,3731.3,3731.2,0.001]
[1760689323830,3.3711,3731.3,3731.2,0.001]
[1760689325230,3.021,3731.3,3731.2,0.001]
[1760689325528,0.222,3732.9,3731.2,3.11320291]
[1760689325529,0.04672218,3732.7,3731.2,3.11320291]
[1760689325737,2.304,3732.6,3731.3,0.33295029]
[1760689326232,0.126,3732.5,3731.2,0.001]
[1760689326453,0.2231,3731.3,3731.2,0.001]
[1760689326764,3.31384658,3731.0,3730.9,0.001]
[1760689326965,3.31370291,3731.2,3730.9,0.001]
[1760689326966,0.126,3731.2,3730.9,0.001]
[1760689327165,0.126,3731.0,3730.9,0.001]
[1760689327376,3.021,3731.0,3730.9,0.001]
[1760689327586,3.7806,3731.0,3730.9,0.001]
[1760689327732,3.7806,3731.0,3728.0,0.2153]
[1760689327733,1.728,3730.9,3728.4,0.4321]
[1760689328052,3.7806,3731.0,3728.0,0.2153]
[1760689328053,2.3616,3729.9,3728.0,0.2153]
[1760689328254,1.728,3729.7,3728.0,0.2153]
[1760689328441,3.021,3729.8,3728.1,3.11443148]
[1760689328647,0.1336,3729.0,3728.4,0.1336]
[1760689328841,3.021,3729.1,3728.5,0.4321]
[1760689329071,3.021,3729.1,3728.7,0.1336]
[1760689329388,3.1546,3729.3,3728.8,0.4321]
[1760689329536,3.1546,3729.3,3729.2,0.2153]
[1760689329537,3.021,3729.3,3729.2,0.2153]
[1760689329730,3.021,3729.3,3729.2,0.6474]
[1760689330169,0.04674033,3731.1,3729.2,0.6474]
[1760689330170,0.04674033,3731.1,3729.2,3.32892641]
[1760689330369,0.2231,3731.8,3729.6,2.68125268]
[1760689330570,0.04672934,3732.0,3729.9,1.728]
[1760689330876,0.04672934,3732.0,3729.3,0.96649264]
[1760689330877,0.3581,3734.2,3731.9,0.2153]
[1760689331074,0.04670932,3733.2,3731.9,0.2153]
[1760689331279,0.04670932,3733.2,3733.1,0.2153]
[1760689331435,0.805,3733.7,3733.1,0.6474]
[1760689331635,0.002,3734.2,3733.3,18.162004]
[1760689331974,0.002,3734.2,3733.4,1.8819164]
[1760689332134,1.238,3734.8,3734.1,2.89332147]
[1760689332336,1.179,3735.6,3734.2,1.728]
[1760689332672,1.179,3735.6,3734.2,0.4321]
[1760689332880,1.179,3735.6,3734.3,0.4321]
[1760689333084,1.179,3735.6,3734.1,0.2153]